Cogmind - Beta 15 @@@ ROGUE MODE // 2025.05.06 @ 13:36:14 Player: MolePlayingNice Result: Destroyed by D4-Y4H(R) with Subdweller Laser Performance ------------- Evolutions (0) 0 Regions Visited (2) 400 Robots Destroyed (26) 130 Value Destroyed (700) 700 Prototype IDs (0) 0 Alien Tech Used (0) 0 Bonus (0) 0 TOTAL SCORE: 1230 Bonus ------- None Cogmind --------- Core Integrity 0/250 Matter 179/300 Energy 100/100 System Corruption 0% Temperature Cool (6) Movement Treading (240) Ox1 Location -10/Subcaves Parts ------- > --- POWER (1) -------- (None) > --- PROPULSION (2) --- Light Treads Subdweller Monowheel > --- UTILITY (2) ------ Large Storage Unit Makeshift Light Armor Plating > --- WEAPON (2) ------- Shotgun Shotgun > --- INVENTORY (15) --- Small Storage Unit Huge Storage Unit Subdweller Optics Subdweller Optics Seismic Detector Hacking Suite EM Shotgun EM Shotgun Heavy Riot Gun Subdweller Beam Cannon Shotgun Shotgun Battle Rifle Subdweller Shrapnel Launcher Multitool Peak State ------------ > --- POWER ------------ Light Nuclear Core > --- PROPULSION ------- Light Treads Subdweller Monowheel > --- UTILITY ---------- Large Storage Unit Makeshift Light Armor Plating > --- WEAPON ----------- Shotgun Subdweller Machine Gun > --- INVENTORY -------- Small Storage Unit Huge Storage Unit Subdweller Optics Subdweller Optics Seismic Detector Hacking Suite EM Shotgun EM Shotgun Heavy Riot Gun Shotgun Shotgun Shotgun Battle Rifle Subdweller Machine Gun Subdweller Shrapnel Launcher [Rating: 18] Favorites ----------- Power Ion Engine Engine Ion Engine Power Core Light Nuclear Core Propulsion Light Treads Treads Light Treads Leg Aluminum Leg Wheel Subdweller Monowheel Utility Large Storage Unit Device Subdweller Optics Storage Large Storage Unit Processor Visual Processing Unit Protection Makeshift Light Armor Plating Weapon Shotgun Energy Gun EM Shotgun Energy Cannon Subdweller Beam Cannon Ballistic Gun Shotgun Build | -11 -10 -10 ------- Run | Yrd Mat Sub Slots Evolved . | . . . Power . | . . . Propulsion . | . . . Utility . | . . . Weapon . | . . . Parts Attached 25 | . 11 14 Power 2 | . 1 1 Engine 1 | . 1 . Core 1 | . . 1 Reactor . | . . . Propulsion 6 | . 4 2 Treads 4 | . 3 1 Leg 1 | . 1 . Wheel 1 | . . 1 Hover . | . . . Flight . | . . . Utility 6 | . 4 2 Device 1 | . . 1 Storage 3 | . 3 . Processor 1 | . 1 . Hackware . | . . . Protection 1 | . . 1 Artifact . | . . . Weapon 11 | . 2 9 Energy Gun 2 | . . 2 Energy Cannon 1 | . . 1 Ballistic Gun 8 | . 2 6 Ballistic Cannon . | . . . Launcher . | . . . Special Weapon . | . . . Impact Weapon . | . . . Slashing Weapon . | . . . Piercing Weapon . | . . . Special Melee Weapon . | . . . Unidentified Prototypes . | . . . Parts Lost 6 | . 1 5 Power 3 | . 1 2 Propulsion 3 | . . 3 Utility . | . . . Weapon . | . . . Highest Loss Streak 2 | . 1 2 To Critical Strikes . | . . . Average Backups 12 | 6 10 14 Power . | 1 1 . Propulsion 2 | 4 3 . Utility 4 | . 3 5 Weapon 5 | 1 3 8 Tool/Special . | . . . Unused Backups 26 | . 14 12 Power 3 | . 3 . Propulsion 3 | . 3 . Utility 8 | . 2 6 Weapon 11 | . 6 5 Tool/Special 1 | . . 1 Average Slot Usage (%) 93 | . 88 98 Engine 10 | . 13 6 Core 3 | . . 7 Treads 18 | . 16 20 Leg 6 | . 11 . Wheel 3 | . . 6 Device 1 | . . 3 Storage 14 | . 14 14 Processor 3 | . 3 4 Protection 2 | . . 6 Ballistic Gun 27 | . 28 26 Peak Build Rating 18 | 6 13 18 Average Rating 10 | 6 7 14 On Entrance 8 | 6 6 12 Naked Turns . | . . . Heaviest Build 51 | 12 51 40 Greatest Support 40 | 20 40 40 Greatest Overweight (x) 1 | . 1 1 Average Overweight (x) . | . . . Largest Inventory Capacity 20 | 8 20 15 Average Capacity 13 | 8 11 15 Most Carried 20 | 6 20 15 Average Carried 12 | 6 10 14 Final Capacity 15 | 8 15 15 Final Carried 15 | 6 15 15 Class Distribution -------------------- 83% | Mutant 16% | Scavenger-Mutant Dominant Class ---------------- Mutant | -10/Materials Mutant | -10/Subcaves Resources | -11 -10 -10 ----------- Run | Yrd Mat Sub Matter Collected 1036 | 206 421 409 Remotely . | . . . Salvage Created 1016 | . 764 252 Parts 54 | . 38 16 Haulers Intercepted 2 | . 2 . Recyclers Shooed 1 | . 1 . Parts Field Recycled . | . . . Retrieved Matter . | . . . Parts Self-Destructed 6 | . . 6 Prevented . | . . . Kills | -11 -10 -10 ------- Run | Yrd Mat Sub Combat Hostiles Destroyed 19 | . 13 6 Guns 19 | . 13 6 Classes Destroyed 8 | . 6 2 Hauler 2 | . 2 . Recycler 2 | . 2 . Operator 1 | . 1 . Watcher 2 | . 2 . Swarmer 3 | . 3 . Grunt 10 | . 10 . Artisan 2 | . . 2 Subdweller 6 | . . 6 Best Kill Streak 3 | . 3 2 Combat Bots Only 3 | . 3 2 Max Kills in Single Turn 1 | . 1 1 Gunslinging . | . . . Exploded . | . . . Melee . | . . . Uniques/NPCs Destroyed . | . . . Combat | -11 -10 -10 -------- Run | Yrd Mat Sub Hostile Shots Fired 120 | . 60 60 Missed 23 | . 9 14 Hits 97 | . 51 46 Projectile 97 | . 51 46 AOE 1 | . . 1 Critical Strikes 2 | . 2 . Damage Taken 1642 | . 594 1048 Core 260 | . 116 144 Absorbed by Shields . | . . . Core Remaining (%) 100 | 100 . . Volleys Fired 173 | 3 102 68 Largest 2 | 2 2 2 Hottest 80 | 40 46 80 Shots Fired 311 | 6 204 101 Gun 308 | 6 204 98 Cannon 3 | . . 3 Launcher . | . . . Special . | . . . Kinetic 306 | 6 204 96 Thermal 3 | . . 3 Explosive . | . . . Electromagnetic 2 | . . 2 Robot Hit Streak 18 | 2 12 18 Robot Miss Streak 4 | 3 4 2 Penetration Max . | . . . Secondary Targets 1 | . . 1 Max Gunslinging Chain 1 | . . 1 Shots Hit Robots 201 | 3 132 66 Core Hits 61 | . 44 17 Critical Kills . | . . . Critical Parts Destroyed 2 | . 2 . Critical Strikes 3 | . 2 1 Destroy 3 | . 2 1 Melee Attacks . | . . . Impact . | . . . Slashing . | . . . Piercing . | . . . Sneak Attacks . | . . . Combat Hostiles . | . . . Follow-up Attacks . | . . . Damage Inflicted 2469 | 25 1253 1191 Guns 2465 | 25 1249 1191 Cannons . | . . . Explosions . | . . . Melee . | . . . Ramming 4 | . 4 . Kinetic 2436 | 25 1249 1162 Thermal . | . . . Explosive . | . . . Electromagnetic 29 | . . 29 Impact . | . . . Slashing . | . . . Piercing . | . . . Highest Corruption . | . . . Average Corruption . | . . . Corruption Purged . | . . . Corruption Blocked . | . . . Overload Shots . | . . . Overflow Damage . | . . . Projectiles . | . . . Explosions . | . . . Melee . | . . . Knockbacks . | . . . Impact . | . . . Kinetic . | . . . Secondary . | . . . Self-Inflicted Damage . | . . . Shots . | . . . Rammed 2 | . 2 . Targets Rammed 2 | . 2 . Kicked . | . . . Crushed . | . . . Highest Temperature 52 | . 52 28 Average Temperature 17 | . 17 13 Received Heat Transfer 555 | . 351 204 Siege Activations . | . . . Martial Activations . | . . . Shielding Activations . | . . . Robots Disrupted . | . . . Combat Hostiles . | . . . Robots Corrupted . | . . . Combat Hostiles . | . . . Parts Fried . | . . . Impact Corruptions . | . . . Robots Melted . | . . . Combat Hostiles . | . . . Parts Melted . | . . . Heat Transferred . | . . . Parts Sabotaged . | . . . Parts Stolen . | . . . Parts Stripped . | . . . Power Chain Reactions . | . . . Alert | -11 -10 -10 ------- Run | Yrd Mat Sub Maximum Alert Level 1 | . 1 . Low Security (%) 82 | 100 82 . Level 1 17 | . 17 . Level 2 . | . . . Level 3 . | . . . Level 4 . | . . . Level 5 . | . . . High Security . | . . . Max Security . | . . . Peak Influence 220 | . 220 . Initial . | . . . Average 103 | . 105 . Influence Increases 504 | . 504 . Destroy 0b10 Robot/C 260 | . 260 . Destroy 0b10 Robot/NC 35 | . 35 . Destroy Leader 68 | . 68 . Successful Hack 36 | . 36 . Select Force Hacks 30 | . 30 . Lose Combat Pursuer 75 | . 75 . Influence Decreases 504 | . 306 198 Entered New Map 96 | . . 96 Time Decay 398 | . 296 102 Lost Part 10 | . 10 . Squads Dispatched 3 | . 3 . Investigation 2 | . 2 . Extermination . | . . . Reinforcement 1 | . 1 . Assault . | . . . Garrison . | . . . Intercept . | . . . Searches Triggered . | . . . Construction Impeded . | . . . Haulers Reinforced . | . . . Active Scanning Responses . | . . . Cargo Convoy Interrupts . | . . . Stealth | -11 -10 -10 --------- Run | Yrd Mat Sub Distress Signals . | . . . Communications Jammed . | . . . Distress Signals . | . . . Times Spotted 45 | . 35 10 Peak Tracking Total 4 | . 4 2 Tactical Retreats 4 | . 4 . Traps | -11 -10 -10 ------- Run | Yrd Mat Sub Traps Triggered 1 | . 1 . Indirectly . | . . . Trap Hack Attempts . | . . . Triggered . | . . . Disarmed . | . . . Reprogrammed . | . . . Reused . | . . . Traps Extracted . | . . . Installed . | . . . Triggered . | . . . Machines | -11 -10 -10 ---------- Run | Yrd Mat Sub Machines Disabled . | . . . Max in Single Turn . | . . . Machines Repaired . | . . . Machines Dismantled . | . . . Machines Sabotaged . | . . . Overloaded Fab Kills . | . . . Hacking | -11 -10 -10 --------- Run | Yrd Mat Sub Machines Accessed 7 | . 7 . Terminals 6 | . 6 . Fabricators . | . . . Repair Stations . | . . . Recycling Units 1 | . 1 . Scanalyzers . | . . . Garrison Access . | . . . Total Hacks 17 | . 17 . Successful 5 | . 5 . Failed 12 | . 12 . Catastrophic 4 | . 4 . Database Lockouts . | . . . Manual 12 | . 12 . Terminals 15 | . 15 . Fabricators . | . . . Repair Stations . | . . . Recycling Units 2 | . 2 . Scanalyzers . | . . . Garrison Access . | . . . Terminal Hacks 3 | . 3 . Terminal Index 1 | . 1 . Registered Components 1 | . 1 . Zone Layout 1 | . 1 . Fabricator Hacks . | . . . Repair Station Hacks . | . . . Recycling Unit Hacks . | . . . Scanalyzer . | . . . Garrison Access Hacks . | . . . Unauthorized Hacks 2 | . 2 . Terminals 1 | . 1 . Assimilate 1 | . 1 . Fabricators . | . . . Repair Stations . | . . . Recycling Units 1 | . 1 . Tunnel 1 | . 1 . Scanalyzers . | . . . Garrison Access . | . . . Data Cores Recovered . | . . . Used . | . . . Hacking Detections 6 | . 6 . Full Trace Events 1 | . 1 . Feedback Events . | . . . Feedback Blocked . | . . . Robot Schematics Acquired . | . . . Robots Built . | . . . Authchips . | . . . Time . | . . . Total Robot Build Rating . | . . . Part Schematics Acquired . | . . . Parts Built . | . . . Authchips . | . . . Time . | . . . Total Part Build Rating . | . . . Parts Repaired . | . . . Time . | . . . Parts Recycled . | . . . Recycled Matter . | . . . Retrieved Matter . | . . . Retrieved Components . | . . . Parts Scanalyzed . | . . . Part Schematics Acquired . | . . . Parts Damaged . | . . . Bothacking | -11 -10 -10 ------------ Run | Yrd Mat Sub Used RIF Installer . | . . . Robots Hacked . | . . . Non-combat . | . . . Combat . | . . . Robot Hacks Applied . | . . . Relay Couplers Released . | . . . Fabnet Peak Effective % . | . . . Robots Rewired . | . . . Allies Hacked . | . . . Hacks Repelled . | . . . Allies | -11 -10 -10 -------- Run | Yrd Mat Sub Total Allies 1 | . 1 . Largest Group 1 | . 1 1 Highest-Rated Group 10 | . 10 10 Highest-Rated Ally 10 | . 10 10 Total Orders . | . . . Ally Attacks . | . . . Total Damage . | . . . Kills . | . . . Allies Corrupted . | . . . Allies Melted . | . . . Intel | -11 -10 -10 ------- Run | Yrd Mat Sub Active Infowar (turns) 1401 | . 496 905 Optics 1401 | . 496 905 Robot Analysis Total . | . . . Derelict Logs Recovered . | . . . Drone Launches . | . . . Drone Recoveries . | . . . Exploration | -11 -10 -10 ------------- Run | Yrd Mat Sub Turns Passed 3775 | 45 2026 1704 Spaces Moved 1768 | 32 702 1034 Core . | . . . Treads 919 | . 477 442 Legs 257 | 32 225 . Wheels 592 | . . 592 Hover . | . . . Flight . | . . . Fastest Speed 120 | 120 120 120 Average Speed 149 | 120 165 139 Slowest Speed 240 | 120 240 240 Overloaded Moves . | . . . Propulsion Burnouts . | . . . Robots Hopped . | . . . Potential Cave-ins . | . . . Cave-ins Triggered . | . . . Exploration Rate (%) 50 | 4 86 60 Regions Visited 2 Branch Regions 1 Pre-discovered Areas 1 | . 1 . Known Exits Taken . | . . . Unknown Exits Taken 2 | 1 1 . Scrap Searched 3 | . . 3 Spaces Dug 1 | . . 1 Terrain Destroyed 1 | . . 1 Melee . | . . . Projectile 1 | . . 1 AOE . | . . . Terrain Rammed . | . . . Walls Destroyed . | . . . Machines Disabled . | . . . Actions | -11 -10 -10 --------- Run | Yrd Mat Sub Total 2626 | 34 1399 1193 Wait 566 | . 528 38 Move 1766 | 31 701 1034 Hop . | . . . Pick Up 48 | . 34 14 Fast Attach 10 | . 6 4 Attach 5 | . 1 4 Detach 5 | . 3 2 Swap 21 | . 5 16 Drop 30 | . 17 13 Fire 173 | 3 102 68 Melee . | . . . Ram . | . . . Kick . | . . . Crush 2 | . 2 . Escape Stasis . | . . . Rewire . | . . . Trap . | . . . Miscellaneous . | . . . Route ------- -11/Scrapyard -10/Materials (discovered 5 exits: [*Mat x3] / [*Min] / [*Sub]) -10/Subcaves (discovered 1 exit: [*Mat]) History --------- Turn | Location | Event 1 | -11/Scrapyard | Discovered new exit (range 3) 46 | -11/Scrapyard | Entered Materials 314 | -10/Materials | Build established: Mutant 828 | -10/Materials | Discovered new exit (range 5) 953 | -10/Materials | Discovered new exit (range 8) 1459 | -10/Materials | Discovered new exit (range 7) 1797 | -10/Materials | Discovered new exit (range 8) 1903 | -10/Materials | Discovered new exit (range 15) 2072 | -10/Materials | Entered Subcaves 2072 | -10/Subcaves | Accompanied by 1 ally 2075 | -10/Subcaves | Ambushed by Subdwellers from Twisted Machinery 2113 | -10/Subcaves | Shifting Twisted Machinery released Sub. Laser 2389 | -10/Subcaves | Shifting Twisted Machinery released Sub. Laser 2539 | -10/Subcaves | Core integrity fell below 50% 2540 | -10/Subcaves | Shifting Twisted Machinery released Mak. Light Armor Plating 2681 | -10/Subcaves | Shifting Twisted Machinery released Sub. Machine Gun 2757 | -10/Subcaves | Core integrity fell below 20% 3290 | -10/Subcaves | Build established: Scavenger-Mutant 3360 | -10/Subcaves | A swath of the cavern ceiling suddenly collapsed 3483 | -10/Subcaves | Shifting Twisted Machinery released Battle Rifle 3488 | -10/Subcaves | Shifting Twisted Machinery released Sub. Beam Cannon 3506 | -10/Subcaves | Discovered new exit (range 14) 3776 | -10/Subcaves | Destroyed by D4-Y4H(R) with Subdweller Laser Last Messages --------------- 03467_ Dropped Mak. Light Armor Plating. 03469_ Acquired Mak. Light Armor Plating. 03471_ Dropped Huge Storage Unit. 03472_ Dropped Sml. Storage Unit. 03472_ Dropped Sub. Optics. 03475_ Acquired Huge Storage Unit. 03478_ Acquired Sml. Storage Unit. 03480_ Acquired Sub. Optics. Battle Rifle falls loose from the Twisted Machinery. Sub. Beam Cannon falls loose from the Twisted Machinery. 03506_ EXIT=FOUND 03648_ Sub. Machine Gun shoots sparks and powers down. 03674_ Dropped Broken Sub. Machine Gun. 03675_ Acquired Sub. Beam Cannon. 03738_ Sub. Optics shoots sparks and powers down. 03763_ Lgt. Nuclear Core destroyed. Map ----- +----------------------------------------------------+ | ???????????????# #??# #?? " | | ????????????????# ## #??? | | ?????????????????# #????????? & # | | ?????????????????# #?????????? ? | | ?????????????????# ## #??????????# #? | | ????????????????## ##??? #?????????## ## | | ???????????????## #?????? ???????# # | | ???????????????# #???????? #????## # | | ??????????????## ##????????? ##???## | | ??????????????# ##??????????#????# | | ??????????????# ##?????????????## | | ??????????????# ## ##???????????## | | ??????????????## ?# ###?######### | | ???????????????## ?# #?# ### | | ????????????????##?##" """#?# ! #?### | | ????????????????#####" ""##?# # ### ####? | | ????????????????#""" "##????## ##?## ## | | ????????????????# ##?###### #???# # | | ????????????????## ## #??#""" #### | | ?????????????????#### ##?# ""[ # | | ???????????????????#" #?# " " [ # | | ????????????????####"" ### # # " # | | ????????????????# """"" ## ##### * | | ????????????????## """ ##???# | | ?????????????????# ##R### ##????## ### | | ????????????????###R@ #?####??????###??###### | | ????????????????# # ##????????????????????? | | ???????????????## #????????????????????? | | ???????????????# ####????????????????????? | | ???????????????## ##???????????????????????? | | ????????????????# #????????????????????????? | | ????????????????# ##????????????????????????? | | ????????????????# #????????????????????????? | | ????????????????# #????????????????????????? | | ????????????????# #????????????????????????? | | ????????????????# ##????????????????????????? | | ???????????????## #????????????????????????? | | ???????????????# ##????????????????????????? | | ???????????????## #?????????????????????????? | | ???????????????# ##????????????????####????? | | ???????????????# ##??????????????## ##???# | | ???????????????# < #????????????### #### | | ???????????????## #??????????##&&"## | | ????????????????# #??????????#"[# #" | | ????????????????# #??????????#%!# | | ????????????????## ##??????????#="# #" | | ?????????????????####???????????#%#### ## | | ????????????????????????????????###??### ## | | ??????????????????????????????????????# # | | ??????????????????????????????????????# | +----------------------------------------------------+ Best States ------------- Heat Dissipation 25 Energy Generation 14 Energy Capacity 250 Matter Stores 300 Matter Capacity 300 Sight Range 21 Terrain Scan Density 10 Armor Coverage 100 Evasion (%) 55 Recoil Reduction 2 Item Schematics ----------------- None Robot Schematics ------------------ None Fabricated ------------ Nothing Repaired ---------- Nothing Alien Tech Used ----------------- None Achievements -------------- None Challenges ------------ None Game ------ Seed PlexusTowerRegenerator Manual? 0 Play Time 00:20:53 Cumulative 200.3 hours Start 2025.05.06 @ 13:17:25 End 2025.05.06 @ 13:36:14 Sessions 1 Manual Loads 0 Difficulty Rogue Special Mode None Game No. 71 Rogue 71 Adventurer 0 Explorer 0 Win Type - Total 4 Types 1/0/2/0/0/0/0/0/0/1 Lore% 64 Gallery% 74 Achievement% 69 Wizard Run 0 Options --------- Layout 1 ASCII 0 Keyboard 1 Movement Arrows Keybinds 0 Fullscreen 2 Font 24/Smallcaps Map View 50x35 Zoom Use 0% Tactical HUD 1 Map Filters NONE Filters NONE Steam 1 RUN: 97f27a7d-4b48-4dd4-b28f-e4b2e22116ba